[Event "Arsen Yeghiazaryan Memorial 2022"]
[Site "Yerevan"]
[Date "2022.07.05"]
[Round "5.3"]
[White "Alaverdyan, Gevorg"]
[Black "Nazari, Arad"]
[Result "0-1"]
[ECO "B90"]
[WhiteElo "2336"]
[BlackElo "2401"]
[Annotator "TA"]
[PlyCount "120"]
[EventDate "2022.06.30"]
[EventType "tourn"]
[EventCountry "ARM"]
[SourceTitle "playchess.com"]
[Source "ChessBase"]
[SourceQuality "1"]
[TimeControl "40/5400+30:1800+30"]

{[%evp 9,120,22,13,10,25,9,21,-4,20,26,25,-8,-7,0,0,0,-14,-16,-16,-47,-20,-38,-39,-24,-15,-157,-142,-135,-144,-186,-181,-207,-151,-295,-298,-290,-307,-311,-305,-324,-314,-358,-363,-475,-456,-437,-414,-449,-451,-453,-429,-429,-431,-458,-457,-641,-300,-432,-416,-429,-302,-314,-312,-313,-300,-301,-298,-381,-381,-387,-385,-377,-385,-398,-354,-361,-353,-407,-406,-398,-401,-407,-407,-408,-406,-398,-397,-389,-385,-397,-395,-658,-658,-646,-642,-658,-533,-1243,-1254,-1172,-1016,-1845,-1783,-1606,-1606,-29975,-29977,-29976,-29977,-29983,-29984,-29986,-29986]} 1. e4 {[%emt 0:40:31]} c5 {[%emt 0:04:25]} 2. Nf3 {[%emt 0:00:08]} d6 {[%emt 0:00:05]} 3. d4 {[%emt 0:00:06]} cxd4 {[%emt 0:00:04]} 4. Nxd4 {[%emt 0:00:06]} Nf6 {[%emt 0:00:05]} 5. Nc3 {[%emt 0:00:09]} a6 {[%emt 0:00:04]} 6. Qd3 {[%emt 0:00:04] B90: Sicilian Najdorf: Unusual White 6th moves, 6 Be3 Ng4 and 6 Be3 e5.} Nbd7 {[%emt 0:02:32]} 7. Be2 {[%emt 0:00:06]} e6 {[%emt 0:01:01]} 8. Qg3 {[%emt 0:00:23] [#] The position is equal.} Qb6 $146 {[%emt 0:05:51]} ({Predecessor:} 8... Qc7 9. O-O b5 10. a3 Bb7 11. Bd3 Rc8 12. f4 Nc5 13. Re1 h5 14. Nf3 d5 15. e5 Nfe4 16. Bxe4 Nxe4 17. Nxe4 dxe4 18. Nd4 g6 {½-½ (18) Aigner,G (1824)-Anliker,P (1855) Bergen 2010}) 9. Nb3 {[%emt 0:01:15]} Qc7 {[%emt 0:01:53]} 10. Be3 {[%emt 0:14:22]} b5 {[%emt 0:00:34] Threatening ...b4.} 11. a3 {[%emt 0:00:06]} Bb7 {[%emt 0:00:16]} 12. f3 {[%emt 0:00:03]} Rc8 {[%emt 0:01:35]} 13. O-O-O {[%emt 0:21:16]} Be7 {[%emt 0:25:06]} 14. Rd2 {[%emt 0:09:16]} (14. Qxg7 Rg8 15. Qh6 d5 16. exd5 Bxa3 $1 $17 {[%mdl 512]}) 14... O-O {[%emt 0:02:10]} 15. Rhd1 {[%emt 0:09:32][%cal Rd2d6]} Ne5 {[%emt 0:04:28]} 16. Kb1 {[%emt 0:03:14]} Bc6 {[%emt 0:06:34]} 17. Bd4 {[%emt 0:04:04] [#] White is on the road to losing.} (17. Bh6 $11 {remains equal.} Nh5 18. Qh3) 17... Nc4 $1 $17 {[%emt 0:05:11]} 18. Bxc4 {[%emt 0:00:03]} bxc4 {[%emt 0:00:07]} 19. Nc1 {[%emt 0:00:06]} e5 {[%emt 0:00:34]} 20. Be3 {[%emt 0:00:27] [#]} Rb8 $1 {[%emt 0:00:39]} 21. N3a2 {[%emt 0:07:30]} (21. Ka1 $17) 21... d5 $19 {[%emt 0:12:57]} (21... Qb7 22. b4 $17) 22. exd5 {[%emt 0:06:41]} Bxa3 {[%emt 0:07:23]} 23. Bd4 {[#]} ({Avoid the trap} 23. dxc6 $2 Rxb2+ 24. Ka1 Qb8 $19) 23... Bd6 {[%emt 0:01:45]} 24. Bc3 {[%emt 0:00:02]} (24. Ba7 Qxa7) 24... Bd7 {[%emt 0:00:25]} 25. Re1 {[%emt 0:02:14][%cal Rc3e5]} Rfe8 {[%emt 0:02:29]} 26. Qh4 {[%emt 0:00:01]} Rb5 {[%emt 0:01:12]} 27. f4 {[%emt 0:04:59]} Nxd5 {[%emt 0:01:44]} 28. fxe5 {[%emt 0:00:12]} Be7 {[%emt 0:01:00] This bishop pair is nice.} 29. Qg3 {[%emt 0:06:17]} Reb8 {[%emt 0:02:34]} 30. Rxd5 {[%emt 0:03:44]} Rxd5 {[%emt 0:00:02]} 31. Ne2 {[%emt 0:00:04]} Be6 {[%emt 0:01:56] Hoping for ...Qb7.} 32. Nd4 {[%emt 0:03:14]} (32. Ka1 $142) 32... Rbd8 {[%emt 0:01:23]} (32... Qb6 $142 33. Nxe6 fxe6) 33. Qf4 {[%emt 0:06:26]} (33. Nxe6 $142 fxe6 34. Qg4) 33... h6 {[%emt 0:03:02] Threatens to win with ...Bg5.} 34. Nc1 {[%emt 0:00:25]} Qb6 {[%emt 0:02:46]} 35. Nxe6 {[%emt 0:00:27]} Qxe6 {[%emt 0:00:02]} 36. Qxc4 {[%emt 0:00:24] [#]} Rxe5 $3 {[%emt 0:02:16][%mdl 512]} 37. Qxe6 {[%emt 0:00:45]} Rxe6 {[%emt 0:00:02]} 38. Rxe6 {[%emt 0:00:17]} fxe6 {[%emt 0:00:08][%cal Bf7e6,Be6e5,Be5e4][%mdl 4128] Endgame KRB-KBN} 39. Nd3 Bd6 {[%emt 0:00:32]} 40. h3 {[%emt 0:01:01]} Rf8 {[%emt 0:00:57]} 41. Bd4 {[%emt 0:00:06]} Rf5 {[%emt 0:00:44]} 42. Kc1 {[%emt 0:11:55]} e5 {[%emt 0:00:30]} 43. Ba7 {[%emt 0:01:56]} e4 {[%emt 0:01:35]} 44. Nf2 {[%emt 0:01:14]} Bf4+ {[%emt 0:00:08]} 45. Kd1 {[%emt 0:00:02]} Rd5+ {[%emt 0:00:08]} 46. Ke1 {[%emt 0:00:21]} Bg3 {[%emt 0:00:20]} 47. Ke2 {[%emt 0:00:03]} Bxf2 {[%emt 0:00:15]} 48. Bxf2 {[%emt 0:00:02] KR-KB} Kf7 {[%emt 0:01:04]} 49. Ke3 {[%emt 0:00:34]} Rd1 {[%emt 0:02:52]} 50. Kxe4 $2 {[%emt 0:03:10]} (50. Ke2 Rc1 51. Kd2) 50... Rd2 $1 {[%emt 0:00:09][%csl LRc2,LRf2]} 51. Kf3 {[%emt 0:00:02]} Rxc2 {[%emt 0:00:08]} 52. Bd4 a5 {[%emt 0:00:49][%cal Ba6a5,Ba5a4][%mdl 32]} 53. g3 {[%emt 0:02:36]} a4 {[%emt 0:00:04]} 54. Ke4 {[%emt 0:00:23]} g6 {[%emt 0:00:19][%cal Bg7g6,Bg6g5][%mdl 32] And now ...g5 would win.} 55. Kd5 {[%emt 0:02:25]} g5 {[%emt 0:00:26] aiming for ...Rh2.} 56. Be5 {[%emt 0:04:16]} Rh2 {[%emt 0:00:09]} 57. Kc4 {[%emt 0:04:06]} Ke6 {[%emt 0:00:06] Black mates.} 58. Bg7 {[%emt 0:05:08]} Rxh3 {[%emt 0:00:07]} 59. Kb4 {[%emt 0:00:02]} h5 {[%emt 0:00:09]} 60. Kxa4 {[%emt 0:00:04]} Rxg3 {[%emt 0:00:08] Weighted Error Value: White=0.57/Black=0.16 (very precise)} 0-1

[Event "Arsen Yeghiazaryan Memorial 2022"]
[Site "Yerevan"]
[Date "2022.07.05"]
[Round "5.4"]
[White "Quparadze, Giga"]
[Black "Hayrapetyan, Hovik"]
[Result "1/2-1/2"]
[ECO "B92"]
[WhiteElo "2482"]
[BlackElo "2481"]
[Annotator "TA"]
[PlyCount "67"]
[EventDate "2022.06.30"]
[EventType "tourn"]
[EventCountry "ARM"]
[SourceTitle "playchess.com"]
[Source "ChessBase"]
[SourceQuality "1"]
[TimeControl "40/5400+30:1800+30"]

{[%evp 19,67,39,74,73,56,64,86,27,55,58,42,22,67,10,34,0,100,79,93,101,145,96,258,228,195,116,106,106,110,37,46,39,38,-10,0,0,0,0,0,0,0,0,0,0,0,0,0,0,0,0]} 1. e4 {[%emt 0:00:02] ChessBase II} c5 {[%emt 0:00:14]} 2. Nf3 {[%emt 0:00:05]} d6 {[%emt 0:00:05]} 3. d4 {[%emt 0:00:03]} cxd4 {[%emt 0:00:06]} 4. Nxd4 {[%emt 0:00:03]} Nf6 {[%emt 0:00:07]} 5. Nc3 {[%emt 0:00:04]} a6 {[%emt 0:00:05]} 6. Be2 {[%emt 0:00:02]} e5 {[%emt 0:00:18]} 7. Nb3 {[%emt 0:00:04]} Be7 {[%emt 0:00:36]} 8. Be3 {[%emt 0:00:04]} O-O {[%emt 0:02:13]} 9. g4 {[%emt 0:00:22][%cal Bg2g4,Bg4g5][%mdl 32]} Be6 {[%emt 0:01:59]} 10. g5 {[%emt 0:00:06]} Nfd7 {[%emt 0:02:23]} 11. h4 {[%emt 0:00:28] B92: Sicilian Najdorf: 6 Be2.} Nc6 {[%emt 0:17:48] 11...b5 is a critical line.} 12. Nd5 {[%emt 0:00:58]} Rc8 {[%emt 0:01:23]} 13. Qd2 {[%emt 0:00:38] White is much more active.} (13. c3 $16) 13... f5 {[%emt 0:12:00]} 14. f3 {[%emt 0:02:17] [#]} Nc5 $146 {[%emt 0:15:07]} ({Predecessor:} 14... Kh8 15. O-O-O f4 16. Bf2 Re8 17. Nxe7 Nxe7 18. Qxd6 Rc6 19. Qd2 Qc7 20. Na5 Rxc2+ 21. Qxc2 Qxa5 {1-0 (43) Romanishin,O-Marjanovic,S Yerevan 1971 EXT 2001 [ChessBase II]}) 15. c3 {[%emt 0:04:13]} b5 {[%emt 0:08:55]} 16. exf5 {[%emt 0:04:55]} (16. O-O-O $14) 16... Bxf5 {[%emt 0:01:18]} 17. Rd1 {[%emt 0:02:13]} e4 {[%emt 0:10:23]} (17... Qe8 $11 {remains equal.}) 18. O-O $16 {[%emt 0:00:05]} exf3 {[%emt 0:03:19]} 19. Bxf3 {[%emt 0:00:33][%cal Od5f6]} (19. Nxe7+ $6 Qxe7 20. Bxf3 Be4 21. Bxe4 Rxf1+ 22. Rxf1 Qxe4 $11) 19... Ne5 {[%emt 0:08:04]} 20. Bg2 {[%emt 0:00:41]} ({Better is} 20. Nxc5 $1 dxc5 21. Bg2) 20... Ncd3 $2 {[%emt 0:06:27]} (20... Bg4 $16 {keeps fighting.}) 21. Nd4 {[%emt 0:00:54]} Bg4 {[%emt 0:00:14] [#]} 22. Rxf8+ {[%emt 0:00:32]} (22. Qc2 $1 $18 Nc5 23. Nf5 Rxf5 24. Rxf5) 22... Bxf8 {[%emt 0:00:01]} 23. Rf1 {[%emt 0:00:10]} Qe8 {[%emt 0:01:47]} 24. Nf5 {[%emt 0:03:18]} ({White should play} 24. Bf2 $16) 24... Bxf5 $14 {[%emt 0:01:37]} 25. Rxf5 {[%emt 0:00:07] Black must now prevent Qe2.} Qh5 {[%emt 0:00:19] Prevents Qe2.} 26. Nb6 {[%emt 0:04:42]} (26. Be4 $14) 26... Re8 {[%emt 0:01:00] The position is equal.} 27. Nd7 {[%emt 0:00:34]} Qxh4 {[%emt 0:04:14]} ({Much less strong is} 27... Nxd7 28. Qxd3 Ne5 29. Bd5+ Kh8 30. Qe4 $16) 28. Bd5+ {[%emt 0:02:53] A strong pair of Bishops.} ({Much worse is} 28. Rxf8+ Rxf8 29. Bd5+ {[#]} Rf7 $1 {[%mdl 512]} 30. Bxf7+ Kxf7 31. Nxe5+ Nxe5 32. Qd5+ Kg6 33. Qxd6+ Kf5 $17) ({Much weaker is} 28. Nxf8 Qg4 29. Rf1 Rxf8 $17) 28... Kh8 {[%emt 0:00:01]} 29. Rxf8+ {[%emt 0:00:17]} Rxf8 {[%emt 0:00:14]} 30. Nxf8 {[%emt 0:00:06]} Qg3+ {[%emt 0:00:31]} 31. Kf1 $1 {[%emt 0:02:08]} Qh3+ {[%emt 0:01:12]} 32. Kg1 {[%emt 0:01:55]} Qg3+ {[%emt 0:00:27]} 33. Kf1 $1 {[%emt 0:00:11]} Qh3+ {[%emt 0:00:01]} 34. Kg1 {[%emt 0:00:08] Weighted Error Value: White=0.25 (precise) /Black=0.24 (precise)} 1/2-1/2

[Event "Arsen Yeghiazaryan Memorial 2022"]
[Site "Yerevan"]
[Date "2022.07.05"]
[Round "5.5"]
[White "Agasarov, Benik"]
[Black "Morchiashvili, Bachana"]
[Result "1/2-1/2"]
[ECO "B76"]
[WhiteElo "2225"]
[BlackElo "2305"]
[Annotator "TA"]
[PlyCount "71"]
[EventDate "2022.06.30"]
[EventType "tourn"]
[EventCountry "ARM"]
[SourceTitle "playchess.com"]
[Source "ChessBase"]
[SourceQuality "1"]
[TimeControl "40/5400+30:1800+30"]

{[%evp 28,71,45,52,36,14,28,18,33,3,8,0,4,0,11,8,7,7,12,14,5,5,5,5,11,13,28,0,0,0,0,0,0,0,0,0,6,14,16,21,38,0,18,-465,6,0]} 1. e4 {[%emt 0:00:04]} c5 {[%emt 0:00:11]} 2. Nf3 {[%emt 0:00:22]} d6 {[%emt 0:01:09]} 3. d4 {[%emt 0:00:39]} cxd4 {[%emt 0:00:02]} 4. Nxd4 {[%emt 0:00:06]} Nf6 {[%emt 0:00:05]} 5. Nc3 {[%emt 0:00:07]} g6 {[%emt 0:00:20]} 6. Be3 {[%emt 0:00:31]} Bg7 {[%emt 0:00:28]} 7. f3 {[%emt 0:00:15]} O-O {[%emt 0:00:11]} 8. Qd2 {[%emt 0:00:19]} Nc6 {[%emt 0:00:03]} 9. O-O-O {[%emt 0:00:42]} d5 {[%emt 0:00:16]} 10. exd5 {[%emt 0:00:06]} Nxd5 {[%emt 0:00:06]} 11. Nxc6 {[%emt 0:00:06]} bxc6 {[%emt 0:00:05]} 12. Bd4 {[%emt 0:00:06]} e5 {[%emt 0:13:01]} 13. Bc5 {[%emt 0:00:05]} Be6 {[%emt 0:05:05] 13...Re8 is more fashionable.} 14. Ne4 {[%emt 0:02:18]} Re8 {[%emt 0:08:49]} 15. Bc4 {[%emt 0:00:56]} Qc7 {[%emt 0:04:04] B76: Sicilian Dragon: Yugoslav Attack, 9 g4 and 9 0-0-0.} 16. h4 {[%emt 0:09:13][%cal Bh2h4,Bh4h5][%mdl 32] With the idea h5.} Rad8 {[%emt 0:01:59]} 17. Qf2 {[%emt 0:23:20]} Nf4 {[%emt 0:09:17]} 18. Bxe6 {[%emt 0:01:15]} (18. Bb3 $5 {[%cal Rc5a7]}) 18... Nxe6 {[%emt 0:00:24] [#]} 19. Bb4 $146 {[%emt 0:13:22]} ({Predecessor:} 19. Rxd8 Rxd8 20. Be3 f5 21. Ng5 Nxg5 22. hxg5 e4 23. fxe4 Qa5 24. a3 Qe5 {½-½ (24) Kovacevic,A (2503)-Stankovic,M (2430) Paracin 2022}) 19... Rd5 {[%emt 0:03:46]} 20. h5 {[%emt 0:05:26]} Red8 {[%emt 0:06:05]} 21. hxg6 {[%emt 0:03:58]} (21. Bd2 {seems wilder.} Qb6 22. hxg6 hxg6 23. Qh4) 21... Rxd1+ {[%emt 0:00:50]} 22. Rxd1 {[%emt 0:00:05] Really sharp!} Rxd1+ {[%emt 0:00:11]} 23. Kxd1 {[%emt 0:00:05] [#] Hoping for gxf7+.} hxg6 {[%emt 0:00:07]} 24. Bd2 {[%emt 0:01:15]} Qb7 {[%emt 0:13:18]} 25. Kc1 {[%emt 0:02:55]} Qa6 {[%emt 0:00:07]} 26. Kb1 {[%emt 0:09:01]} Nd4 {[%emt 0:02:02]} 27. Qh4 {[%emt 0:03:04]} Qf1+ {[%emt 0:11:27]} 28. Bc1 {[%emt 0:00:05] [#] And now Qd8+ would win.} Ne6 {[%emt 0:10:07] Inhibits Qd8+.} (28... Qxg2 $5 29. Qd8+ Bf8 30. Nf6+ Kg7 31. Ne8+ Kg8 32. Nf6+ Kg7 33. Ne8+ Kg8 34. Nf6+ $11) 29. Qf2 {[%emt 0:01:48]} ({But not} 29. Qe7 $2 Bh6 30. a3 Qxc1+ $19) 29... Qd1 {[%emt 0:01:07] ...Bh6 is the strong threat.} 30. Qd2 {[%emt 0:02:06] Inhibits Bh6.} Qf1 {[%emt 0:00:35]} 31. Qf2 {[%emt 0:00:09]} Qh1 {[%emt 0:00:33]} 32. Ng3 {[%emt 0:00:31]} Qd1 {[%emt 0:01:02]} 33. Qf1 {[%emt 0:00:28]} Qd8 {[%emt 0:02:02]} 34. Qf2 {[%emt 0:00:19]} Qd1 {[%emt 0:00:03]} 35. Ne4 $2 {[%mdl 8192]} (35. Qe2 $11 Qg1 36. Qf1 Qxf1 37. Nxf1) 35... Qh1 $2 {[%emt 0:00:38]} (35... Bh6 $1 $19 {[%csl Gh6][%cal Rd1c1]} 36. a4 Bxc1) 36. Ng3 {[%emt 0:00:01] Weighted Error Value: White=0.43/Black=0.30} 1/2-1/2

[Event "Arsen Yeghiazaryan Memorial 2022"]
[Site "Yerevan"]
[Date "2022.07.06"]
[Round "6.1"]
[White "Yeremyan, Alen"]
[Black "Yeritsyan, Hayk"]
[Result "1-0"]
[ECO "B11"]
[WhiteElo "2233"]
[BlackElo "2249"]
[Annotator "TA"]
[PlyCount "139"]
[EventDate "2022.06.30"]
[EventType "tourn"]
[EventCountry "ARM"]
[SourceTitle "playchess.com"]
[Source "ChessBase"]
[SourceQuality "1"]
[TimeControl "40/5400+30:1800+30"]

{[%evp 10,139,18,-11,30,35,36,32,32,32,24,26,22,26,29,27,34,32,33,33,54,47,55,60,67,72,73,61,70,70,77,73,75,46,123,119,138,137,138,134,191,193,228,224,312,305,418,418,418,412,508,522,595,564,563,443,443,443,443,461,461,469,468,468,450,431,491,477,477,387,375,254,238,92,92,93,210,101,108,102,544,541,1215,818,6557,4841,1529,2907,29948,29953,29965,1152,29947,29946,12810,12847,29965,29964,11018,408,396,0,8874,12739,9554,6524,7536,6524,5858,5852,4578,0,0,0,0,0,4643,0,0,0,29978,29979,29979,29980,29980,29981,29981,29982,29982,29983,29981,29982]} 1. e4 {[%emt 0:00:05]} c6 {[%emt 0:00:37]} 2. Nc3 {[%emt 0:00:20]} d5 {[%emt 0:00:10]} 3. Nf3 {[%emt 0:00:18]} Bg4 {[%emt 0:00:18]} 4. h3 {[%emt 0:00:23]} Bxf3 {[%emt 0:00:07]} 5. Qxf3 {[%emt 0:00:06]} Nf6 {[%emt 0:00:19]} 6. g3 {[%emt 0:01:28]} dxe4 {[%emt 0:01:53] B11: Caro-Kann: Two Knights Variation.} 7. Nxe4 {[%emt 0:00:20]} Nxe4 {[%emt 0:00:05]} 8. Qxe4 {[%emt 0:00:14]} Qd5 {[%emt 0:00:08] White is slightly better.} 9. Bg2 {[%emt 0:01:52]} Qxe4+ {[%emt 0:00:56]} 10. Bxe4 {[%emt 0:00:02]} Nd7 {[%emt 0:00:14] [#]} 11. d3 $146 {[%emt 0:00:50]} ({Predecessor:} 11. O-O e6 12. d4 Bd6 13. Be3 O-O 14. Bg2 Rfd8 15. Rad1 Nf6 16. c4 Rd7 17. Rd3 {½-½ (48) Sarenac,I (2358)-Mijailovic,Z (2408) Belgrade 2010}) 11... e6 {[%emt 0:00:10]} 12. Bd2 {[%emt 0:01:10]} a5 {[%emt 0:04:29]} 13. O-O-O {[%emt 0:02:49][%cal Be1c1,Bc1c2,Bc2b3][%mdl 32]} a4 {[%emt 0:03:08]} 14. Rhe1 {[%emt 0:02:46]} a3 {[%emt 0:02:52]} 15. b4 {[%emt 0:02:01]} Bd6 {[%emt 0:05:17]} 16. c3 {[%emt 0:02:41][%cal Bc2c3,Bc3c4][%mdl 32]} Nf6 {[%emt 0:07:51]} 17. Kc2 {[%emt 0:02:01]} Kd7 {[%emt 0:00:30]} 18. c4 {[%emt 0:02:11]} Rhd8 {[%emt 0:09:59]} 19. Bg2 {[%emt 0:02:13]} (19. Bc3 {feels hotter.} Ra4 20. Kb3 b5 21. f4) 19... Ne8 {[%emt 0:07:57]} 20. Kb3 {[%emt 0:06:12]} Ra6 {[%emt 0:04:15]} 21. d4 {[%emt 0:01:42][%cal Bd3d4,Bd4d5][%mdl 32]} b5 {[%emt 0:01:23]} (21... Nc7 $14) 22. cxb5 $1 $16 {[%emt 0:08:13]} cxb5 {[%emt 0:00:01]} 23. d5 {[%emt 0:02:10] Active counter play!} e5 {[%emt 0:00:45]} 24. Rc1 {[%emt 0:02:13]} Bb8 {[%emt 0:06:11]} (24... f6 $16 25. h4 Nc7) 25. h4 $18 {[%emt 0:01:59]} f6 {[%emt 0:06:53]} 26. f4 {[%emt 0:01:36]} g6 {[%emt 0:03:42]} 27. Bf1 {[%emt 0:01:28]} Nd6 {[%emt 0:02:11]} 28. fxe5 {[%emt 0:01:26]} fxe5 {[%emt 0:00:06]} 29. Rxe5 {[%emt 0:02:48] Threatens to win with Bg5. Dancing on a razor blade.} Rf8 {[%emt 0:02:09]} 30. Bf4 {[%emt 0:01:56]} Rb6 {[%emt 0:04:42]} 31. Re6 {[%emt 0:00:49]} Rb7 {[%emt 0:01:21] [#]} 32. Rxd6+ {[%emt 0:04:47][%mdl 512]} Bxd6 {[%emt 0:00:03]} 33. Bh3+ {[%emt 0:00:04] A strong pair of Bishops.} Rf5 {[%emt 0:01:39]} 34. Rc6 {[%emt 0:01:15]} Bxf4 {[%emt 0:00:44]} 35. gxf4 {[%emt 0:00:08]} Rb8 {[%emt 0:00:08]} 36. Bxf5+ {[%emt 0:01:30]} gxf5 {[%emt 0:00:01]} 37. Kxa3 {[%emt 0:03:31][%mdl 4096] Endgame KR-KR} Re8 {[%emt 0:00:58]} 38. Re6 {[%emt 0:04:28] Black must now prevent Rxe8.} Rc8 {[%emt 0:02:40]} 39. Kb3 {[%emt 0:04:49] Inhibits Rc3+.} Rc4 {[%emt 0:00:10]} 40. h5 {[%emt 0:00:00]} Rxf4 {[%emt 0:00:00]} 41. Rf6 {[%emt 0:17:00]} (41. Rb6 $1 $18) 41... Rf3+ $16 {[%emt 0:01:30]} 42. Kc2 {[%emt 0:01:31] Strongly threatening Rb6.} Ke7 {[%emt 0:03:37]} (42... f4 $16 {was worth a try.}) 43. Rh6 {[%emt 0:00:50]} (43. Rb6 $18 {has better winning chances.}) 43... Rh3 {[%emt 0:02:21]} 44. Kd2 {[%emt 0:04:58]} Ra3 $2 {[%emt 0:04:00][%mdl 8192]} (44... f4 $16 45. Ke2 (45. Rxh7+ Kd6 $16) 45... Kd7) 45. Rxh7+ $18 {[%emt 0:02:44]} Kd6 {[%emt 0:00:07]} 46. Rh8 {[%emt 0:05:11] Threatening mate with h6.} Rxa2+ {[%emt 0:16:18]} 47. Ke3 {[%emt 0:02:58]} Ke5 {[%emt 0:02:29]} 48. h6 {[%emt 0:01:37]} f4+ {[%emt 0:02:25]} 49. Kf3 {[%emt 0:05:12]} Ra3+ {[%emt 0:00:10]} 50. Ke2 {[%emt 0:04:03]} (50. Kg4 $142 Kf6 51. Rb8 Kg6 52. Kxf4 Ra7 53. Rb6+ Kf7 54. h7 Kg7 55. d6 Kxh7 56. Ke5) 50... Ra2+ {[%emt 0:02:03]} 51. Ke1 {[%emt 0:00:34]} Ra1+ {[%emt 0:00:29]} 52. Kd2 {[%emt 0:00:45]} Ra2+ {[%emt 0:00:39]} 53. Kc3 {[%emt 0:00:29]} Ra3+ {[%emt 0:00:03]} 54. Kb2 {[%emt 0:00:56]} Ra7 {[%emt 0:00:35]} (54... Rh3 $2 55. h7 Rh2+ 56. Kc3 Rh3+ 57. Kc2 Rh2+ 58. Kd3 Rh3+ 59. Kc2 Rh2+ 60. Kd3 Rh3+ 61. Ke2 $18) 55. Kc3 $2 {[%emt 0:08:10]} ({Resist} 55. h7 Kd4 56. Kc2 Rf7 $18) (55. d6 $18) 55... Kxd5 $2 {[%emt 0:03:47][%mdl 8192]} (55... Ra3+ $11 56. Kb2 Ra7) 56. h7 {[%emt 0:00:05] Intending Rd8+ and mate.} Rc7+ {[%emt 0:00:14]} 57. Kd3 {[%emt 0:00:11]} Rd7 {[%emt 0:00:03] Inhibits Rd8.} 58. Ke2 {[%emt 0:02:10] White wants to mate with Kf3.} Re7+ {[%emt 0:00:03]} 59. Kf3 {[%emt 0:03:24]} Ke5 {[%emt 0:00:24] [#]} 60. Kf2 $2 {[%emt 0:00:47]} ({White must play} 60. Kg4 $1 $18 {[%cal Rg4f3] White threatens Kf3 and mate.} f3 61. Kxf3 Rf7+ 62. Ke3) 60... Ke4 $11 {[%emt 0:00:13]} 61. Ke2 {[%emt 0:00:54]} Kf5+ {[%emt 0:00:05]} 62. Kf3 $2 {[%emt 0:00:16][%mdl 8192]} (62. Kf2 $11 Kg6 63. Rb8 Rxh7 64. Rxb5) 62... Ke5 $18 {[%emt 0:00:04] [#]} 63. Kf2 $2 {[%emt 0:01:21]} (63. Kg4 $1 $18 {[%cal Rg4f3] Kf3 would kill now.} f3 64. Kxf3 Rf7+ 65. Ke3) 63... Ke4 $11 {[%emt 0:00:04]} 64. Ke2 {[%emt 0:00:42]} Ke5 $2 {[%emt 0:00:12][%mdl 8192]} (64... Kf5+ $11 65. Kf2 Kg6) 65. Kf3 {[%emt 0:00:23] White mates.} Ke6 {[%emt 0:01:04]} 66. Kxf4 {[%emt 0:00:11]} Rf7+ {[%emt 0:00:30]} 67. Kg5 {[%emt 0:00:22]} Rg7+ {[%emt 0:01:16]} 68. Kh6 {[%emt 0:00:13]} Rg1 {[%emt 0:00:04]} 69. Re8+ {[%emt 0:00:21]} Kd5 {[%emt 0:00:06]} 70. h8=Q {[%emt 0:00:22] Weighted Error Value: White=0.29 (precise) /Black=0.73} 1-0